[Event "45th FIDE Womens Olympiad 2024"]
[Site "Budapest"]
[Date "2024.09.16"]
[Round "6.30"]
[White "Zimina, Olga"]
[Black "Paehtz, Elisabeth"]
[Result "0-1"]
[ECO "D11"]
[WhiteElo "2302"]
[BlackElo "2455"]
[Annotator "TA"]
[PlyCount "70"]
[EventDate "2024.09.05"]
[EventType "team-tourn"]
[EventCountry "HUN"]
[SourceTitle "playchess.com"]
[Source "ChessBase"]
[SourceQuality "1"]
[WhiteTeam "Italy"]
[BlackTeam "Germany"]
[WhiteTeamCountry "ITA"]
[BlackTeamCountry "GER"]
[TimeControl "40/5400+30:1800+30"]

{[%evp 10,70,0,0,0,0,0,0,0,0,0,0,0,0,0,0,0,0,0,-17,0,-29,-18,-110,-118,-118,-87,-76,-88,-83,-85,-117,-48,-77,-70,-81,-81,-82,-12,-141,-134,-125,-123,-121,-139,-169,-156,-171,-187,-215,-187,-272,-278,-258,-267,-357,-377,-2754,-2045,-4990,-4918,-1881,-1604]} 1. d4 {[%emt 0:00:04]} d5 {[%emt 0:00:06]} 2. Nf3 {[%emt 0:00:05]} Nf6 {[%emt 0:00:19]} 3. g3 {[%emt 0:00:04]} Bf5 {[%emt 0:00:06]} 4. Bg2 {[%emt 0:00:16]} e6 {[%emt 0:00:06]} 5. c4 {[%emt 0:00:17]} c6 {[%emt 0:00:12]} 6. Nc3 {[%emt 0:00:27]} Be7 {[%emt 0:01:38]} 7. Qb3 {[%emt 0:00:15]} Qb6 {[%emt 0:00:18]} 8. c5 {[%emt 0:01:40]} Qxb3 {[%emt 0:00:05] The position is equal.} 9. axb3 {[%emt 0:00:03]} O-O {[%emt 0:05:20]} 10. O-O {[%emt 0:00:33]} h6 {[%emt 0:03:42]} 11. b4 {[%emt 0:02:38]} a6 {[%emt 0:00:57]} 12. h3 {[%emt 0:00:52]} Nbd7 {[%emt 0:00:11]} 13. g4 {[%emt 0:00:44]} Bh7 {[%emt 0:00:23]} 14. Bf4 {[%emt 0:00:04]} Ne4 {[%emt 0:02:23]} 15. Ne5 {[%emt 0:09:55]} Nxe5 {[%emt 0:02:05]} 16. Bxe5 {[%emt 0:00:56]} (16. Bxe4 $11 {keeps the balance.} Bxe4 17. Bxe5) 16... Nd2 $17 {[%emt 0:01:03]} 17. Rfe1 {[%emt 0:02:46]} Nc4 {[%emt 0:11:42][%cal Oc4e5]} 18. Bg3 {[%emt 0:14:35]} Bf6 {[%emt 0:08:08]} 19. e3 {[%emt 0:12:26]} Nxb2 {[%emt 0:00:04]} 20. f4 {[%emt 0:01:41]} Nd3 {[%emt 0:03:02]} ({Better is} 20... Nc4 $17 21. Bf1 Nd2) 21. Reb1 $15 {[%emt 0:00:06]} g5 $36 {[%emt 0:04:40][%mdl 2048] Strongly threatening ...gxf4. Black has the initiative.} 22. Ne2 {[%emt 0:02:48]} gxf4 {[%emt 0:03:45]} 23. exf4 {[%emt 0:00:31] [#]} b6 {[%emt 0:05:52] Black is much more active.} 24. g5 {[%emt 0:09:30]} (24. cxb6 $11 Rfb8 25. f5 (25. g5 $2 Bd8 $19) 25... Rxb6 26. Rb3 Nxb4 (26... Rxb4 27. Rxd3 Rb2 28. Kf1 $16) 27. Bd6) 24... hxg5 {[%emt 0:13:50]} 25. fxg5 {[%emt 0:01:14]} Bxg5 {[%emt 0:00:02]} 26. cxb6 {[%emt 0:00:12][%cal Ob4b5] [#]} e5 $1 {[%emt 0:00:01][%mdl 512]} 27. b7 {[%emt 0:21:53]} (27. h4 Be3+) 27... Rab8 {[%emt 0:00:03]} 28. Rxa6 {[%emt 0:05:35]} (28. b5 $2 axb5 (28... Rxb7 29. bxc6 Rxb1+ 30. Rxb1 $11) 29. Bxd5 (29. Ra7 $2 f5 $19) 29... cxd5 $19) 28... Rxb7 {[%emt 0:09:09]} 29. Rxc6 {[%emt 0:00:34]} Be3+ {[%emt 0:03:14]} (29... Rxb4 30. Rxb4 Be3+ (30... Nxb4 31. Rb6 $17) 31. Kh2 Nxb4 32. Rb6 $11) (29... Nxb4 30. Rb2 exd4 (30... Nxc6 31. Rxb7 Nxd4 32. Nxd4 $17) 31. Bf4 Nxc6 32. Rxb7 $17) 30. Kh1 {[%emt 0:01:15]} (30. Kh2 $142) 30... Nxb4 $19 {[%emt 0:03:29]} ({Less strong is} 30... Rxb4 31. Rxb4 Nxb4 32. Rb6 $17) 31. Rb3 {[%emt 0:00:18]} exd4 {[%emt 0:02:54] Threatens to win with ...d3.} 32. Nf4 {[%emt 0:05:23]} d3 {[%emt 0:05:13]} 33. Nxd5 $2 {[%emt 0:00:20]} (33. Nxd3 Bxd3 34. Bxd5) 33... Nxd5 {[%emt 0:00:59] Black is clearly winning.} (33... Nxc6 $2 34. Rxb7 Bg5 35. Nc3 $17) 34. Rxb7 {[%emt 0:00:33]} d2 {[%emt 0:00:12]} 35. Bf3 {[%emt 0:00:33] [#]} Be4 $1 {[%emt 0:00:04][%mdl 512] Weighted Error Value: White=0.55/Black=0.09 (flawless) .  Mistake:       	White=4     	Black=2      Inaccurate:     	White=4     	---        OK:         	White=11    	Black=13     Best:        	White=1     	Black=2      Brilliant:      	---       	Black=1} 0-1

[Event "45th FIDE Womens Olympiad 2024"]
[Site "Budapest"]
[Date "2024.09.16"]
[Round "6.31"]
[White "Heinemann, Josefine"]
[Black "Gueci, Tea"]
[Result "1-0"]
[ECO "B15"]
[WhiteElo "2316"]
[BlackElo "2199"]
[Annotator "TA"]
[PlyCount "55"]
[EventDate "2024.09.05"]
[EventType "team-tourn"]
[EventCountry "HUN"]
[SourceTitle "playchess.com"]
[Source "ChessBase"]
[SourceQuality "1"]
[WhiteTeam "Germany"]
[BlackTeam "Italy"]
[WhiteTeamCountry "GER"]
[BlackTeamCountry "ITA"]
[TimeControl "40/5400+30:1800+30"]

{[%evp 14,55,39,42,32,42,37,38,41,25,24,18,41,30,45,25,76,47,64,78,101,96,116,116,169,100,104,112,105,102,258,93,220,210,230,224,434,429,396,416,412,405,801,800]} 1. e4 {[%emt 0:00:04]} c6 {[%emt 0:00:02]} 2. d4 {[%emt 0:00:10]} d5 {[%emt 0:00:02]} 3. Nd2 {[%emt 0:00:06]} dxe4 {[%emt 0:00:04]} 4. Nxe4 {[%emt 0:00:06]} Nf6 {[%emt 0:00:02]} 5. Nxf6+ {[%emt 0:00:09]} exf6 {[%emt 0:00:06]} 6. c3 {[%emt 0:00:15]} Bd6 {[%emt 0:00:04]} 7. Bd3 {[%emt 0:00:06]} O-O {[%emt 0:00:12]} 8. Qc2 {[%emt 0:00:10] Active counter play!} Re8+ {[%emt 0:00:03]} 9. Ne2 {[%emt 0:00:04]} h5 {[%emt 0:00:06]} 10. O-O {[%emt 0:03:23]} h4 {[%emt 0:00:29] White is slightly better.} 11. h3 {[%emt 0:00:08]} Nd7 {[%emt 0:00:31][%cal Bb8d7,Bd7f8,Bf8e6,Be6f4][%mdl 32]} 12. Bd2 {[%emt 0:02:56]} Nf8 {[%emt 0:00:26]} 13. Rae1 {[%emt 0:00:29]} Be6 {[%emt 0:09:25]} 14. Nf4 {[%emt 0:07:27]} Qc7 {[%emt 0:11:57]} (14... g6 $11) 15. Nxe6 $16 {[%emt 0:00:48]} Nxe6 {[%emt 0:00:41]} 16. Bc4 {[%emt 0:03:29][%cal Bd3c4,Bc4b3,Bb3c2][%mdl 32]} Nf4 {[%emt 0:09:03]} 17. Qf5 {[%emt 0:07:30]} b5 {[%emt 0:07:15]} 18. Bb3 {[%emt 0:09:14]} b4 {[%emt 0:37:56]} 19. Bxf4 {[%emt 0:05:15]} (19. cxb4 $6 Ne2+ 20. Kh1 Nxd4 $14) (19. Bc2 $18 {Qh7+ would kill now.} Ng6 20. cxb4) 19... Bxf4 {[%emt 0:00:04]} 20. Bc2 {[%emt 0:00:09]} g6 {[%emt 0:01:00]} 21. Qxf6 {[%emt 0:00:40] And now Bb3 would win.} bxc3 $2 {[%emt 0:02:53] [#]} (21... Qd6 $16 22. Qxh4 bxc3) 22. bxc3 $2 {[%emt 0:02:55]} ({Stronger than} 22. Qxh4 cxb2 23. g3 Rxe1 24. Rxe1 Qa5 $19) (22. Bb3 $1 $18 Rxe1 23. Rxe1 cxb2 24. Qxg6+ (24. Qxh4 $2 c5 $19) 24... Kh8 25. Bxf7 (25. Qxf7 $2 Qxf7 26. Bxf7 Rd8 $19)) 22... Bd2 {[%emt 0:03:18]} (22... Qd6 $16 {was necessary.} 23. Qxh4 Bd2) 23. Rxe8+ $18 {[%emt 0:01:24]} Rxe8 {[%emt 0:00:04]} 24. Bb3 {[%emt 0:00:10]} ({Less strong is} 24. Qxh4 Bxc3 25. Rd1 Qd6 $14) 24... Bxc3 $2 {[%emt 0:07:48]} (24... Kf8 {is a better defense.} 25. Qh8+ (25. Qxh4 Kg7 $16) 25... Ke7 26. Qxh4+ Kf8) 25. Qxg6+ {[%emt 0:01:02]} ({Weaker is} 25. Qxh4 Qd6 $11) 25... Kf8 {[%emt 0:00:13]} 26. Qh6+ {[%emt 0:01:46]} Kg8 {[%emt 0:00:43]} 27. Qg5+ {[%emt 0:00:20]} Kf8 {[%emt 0:00:52]} (27... Kh8 $142 28. Qxh4+ Kg7 29. Bxf7 Qxf7 30. Qg3+ Qg6) 28. Qc5+ {[%emt 0:00:06] Weighted Error Value: White=0.13 (very precise) /Black=0.56.  Missed win:     	White=1     	---        Mistake:       	White=1     	Black=6      OK:         	White=7     	Black=4      Best:        	White=5     	Black=2} 1-0

[Event "45th FIDE Womens Olympiad 2024"]
[Site "Budapest"]
[Date "2024.09.16"]
[Round "6.31"]
[White "Aishath, Iva Hassan"]
[Black "Gontcharova, Olga"]
[Result "1-0"]
[ECO "B07"]
[WhiteElo "1422"]
[BlackElo "1567"]
[PlyCount "53"]
[EventDate "2024.09.05"]
[EventType "team-tourn"]
[EventCountry "HUN"]
[WhiteTeam "Maldives"]
[BlackTeam "Bermuda"]
[WhiteTeamCountry "MDV"]
[BlackTeamCountry "BER"]
[TimeControl "40/5400+30:1800+30"]

1. d4 d6 2. e4 Nf6 3. Nc3 e5 4. dxe5 dxe5 5. Qxd8+ Kxd8 6. Bg5 Be7 7. Nf3 Nbd7 8. O-O-O Bd6 9. Bxf6+ gxf6 10. Nb5 Be7 11. g3 a6 12. Nc3 c6 13. Nh4 b5 14. Bh3 Ke8 15. Nf5 Bf8 16. Nd6+ Bxd6 17. Rxd6 Ke7 18. Rxc6 Bb7 19. Rc7 Rab8 20. Rxd7+ Ke8 21. Rhd1 Bc6 22. Rc7 Ba8 23. Rdd7 Bc6 24. Rxc6 Rd8 25. Rxd8+ Kxd8 26. Rc8+ Ke7 27. Rxh8 1-0

[Event "45th FIDE Womens Olympiad 2024"]
[Site "Budapest"]
[Date "2024.09.16"]
[Round "6.32"]
[White "Sedina, Elena"]
[Black "Klek, Hanna Marie"]
[Result "0-1"]
[ECO "C54"]
[WhiteElo "2196"]
[BlackElo "2296"]
[Annotator "TA"]
[PlyCount "66"]
[EventDate "2024.09.05"]
[EventType "team-tourn"]
[EventCountry "HUN"]
[SourceTitle "playchess.com"]
[Source "ChessBase"]
[SourceQuality "1"]
[WhiteTeam "Italy"]
[BlackTeam "Germany"]
[WhiteTeamCountry "ITA"]
[BlackTeamCountry "GER"]
[TimeControl "40/5400+30:1800+30"]

{[%evp 17,66,-4,0,0,0,0,6,0,0,0,0,0,32,41,22,0,0,0,0,0,0,0,0,0,0,0,0,-170,-170,-165,-160,-173,-191,-193,-175,-182,-164,-170,-158,-157,-161,-179,-164,-171,-136,-210,-192,-197,-182,-709,-702]} 1. e4 {[%emt 0:00:03]} e5 {[%emt 0:00:07]} 2. Nf3 {[%emt 0:00:10]} Nc6 {[%emt 0:00:06]} 3. Bc4 {[%emt 0:00:15]} Bc5 {[%emt 0:00:10]} 4. c3 {[%emt 0:01:08]} Nf6 {[%emt 0:00:10]} 5. d4 {[%emt 0:00:19]} exd4 {[%emt 0:00:09]} 6. e5 {[%emt 0:00:14]} d5 {[%emt 0:00:09]} 7. Bb5 {[%emt 0:00:17]} Ne4 {[%emt 0:00:08]} 8. cxd4 {[%emt 0:00:06]} Bb6 {[%emt 0:00:14]} 9. Nc3 {[%emt 0:00:25]} O-O {[%emt 0:00:51]} 10. Be3 {[%emt 0:00:35]} Bg4 {[%emt 0:00:08]} 11. h3 {[%emt 0:00:34]} Bh5 {[%emt 0:00:06]} 12. Qc2 {[%emt 0:01:29] The position is equal.} Ba5 {[%emt 0:00:19]} 13. O-O {[%emt 0:10:04]} Bxf3 {[%emt 0:00:37]} 14. gxf3 {[%emt 0:00:11]} Ng5 {[%emt 0:00:09][%cal Oc6d4] And now ...Nxd4! would win.} 15. Kg2 {[%emt 0:29:14] Bxc6 is the strong threat.} Bxc3 {[%emt 0:00:21]} 16. Qxc3 {[%emt 0:04:03]} Ne6 {[%emt 0:01:17]} 17. Bxc6 {[%emt 0:21:56]} bxc6 {[%emt 0:00:09]} 18. Qxc6 {[%emt 0:05:01]} Rb8 {[%emt 0:00:46][%cal Ob8b4]} 19. f4 {[%emt 0:04:29] Black must now prevent f5.} Rb6 {[%emt 0:05:16]} (19... Rxb2 $2 {loses.} 20. f5 Nxd4 (20... Rb6 $2 21. Qc1 $18) 21. Qc3 (21. Bxd4 Qg5+ 22. Kh1 Qxf5 $11) 21... Nxf5 22. Qxb2 $18) 20. Qc2 {[%emt 0:00:49]} f5 {[%emt 0:00:30]} 21. Kh2 {[%emt 0:08:26]} Qh4 {[%emt 0:03:36]} 22. Qd2 $2 {[%emt 0:03:23] [#]} (22. Qc1 $11 {and White is okay.}) 22... g5 $1 $36 {[%emt 0:07:24][%cal Rg5f4][%mdl 2560] Black is really pushing.} 23. f3 {[%emt 0:01:12]} (23. fxg5 $2 {perishes.} f4 24. Qe2 Nxg5 $19 (24... fxe3 $2 25. fxe3 Nxg5 26. Qg2 $19)) (23. Rg1 Kh8) 23... gxf4 {[%emt 0:02:50]} 24. Rg1+ {[%emt 0:00:55]} Kh8 {[%emt 0:02:08]} 25. Bf2 {[%emt 0:00:06] [#]} Qh5 {[%emt 0:01:32][%cal Oh7h6] Hoping for ...h6!} 26. h4 {[%emt 0:00:32]} Rfb8 {[%emt 0:15:04]} 27. b3 {[%emt 0:00:47]} Qxf3 {[%emt 0:02:00]} 28. Rac1 {[%emt 0:01:37] Prevents Rc6} Rg8 {[%emt 0:12:07]} 29. Rc3 {[%emt 0:03:28]} Qe4 {[%emt 0:04:18]} 30. Rxg8+ {[%emt 0:01:18]} Kxg8 {[%emt 0:00:06]} 31. Rc1 {[%emt 0:01:04]} (31. Qd1 $17) 31... Kf7 {[%emt 0:04:25]} 32. Re1 {[%emt 0:00:48]} Qf3 {[%emt 0:00:39] ...Rc6 would now be deadly.} 33. Qe2 $2 {[%emt 0:01:23] [#]} (33. Rc1) 33... Nxd4 $1 {[%emt 0:03:23][%mdl 512] Weighted Error Value: White=0.33/Black=0.03 (flawless) .  Loses game:     	White=1     	---        Mistake:       	White=2     	---        Inaccurate:     	---       	Black=1      OK:         	White=12    	Black=14     Best:        	---       	Black=3      Brilliant:      	---       	Black=1} 0-1

[Event "45th FIDE Womens Olympiad 2024"]
[Site "Budapest"]
[Date "2024.09.16"]
[Round "6.33"]
[White "Francisco Guecamburu, Candela Be"]
[Black "Khademalsharieh, Sarasadat"]
[Result "0-1"]
[ECO "C58"]
[WhiteElo "2294"]
[BlackElo "2468"]
[Annotator "TA"]
[PlyCount "80"]
[EventDate "2024.09.05"]
[EventType "team-tourn"]
[EventCountry "HUN"]
[SourceTitle "playchess.com"]
[Source "ChessBase"]
[SourceQuality "1"]
[WhiteTeam "Argentina"]
[BlackTeam "Spain"]
[WhiteTeamCountry "ARG"]
[BlackTeamCountry "ESP"]
[TimeControl "40/5400+30:1800+30"]

{[%evp 14,80,27,11,27,23,52,52,35,30,81,65,93,43,63,0,10,19,37,33,50,-12,-15,0,12,27,16,0,0,-37,-35,-250,-256,-231,-252,-245,-250,-239,-240,-225,-241,-511,-502,-817,-809,-787,-722,-1869,-1674,-2279,-2204,-2298,-2281,-29987,-29988,-29986,-29987,-29978,-943,-914,-931,-916,-908,-1064,-792,-1215,-1166,-1170,-986]} 1. e4 e5 2. Nf3 Nc6 3. Bc4 Nf6 4. Ng5 d5 5. exd5 Na5 6. Bb5+ c6 7. dxc6 bxc6 8. Qf3 Be7 {[%cal Oe8g8]} 9. Bd3 h6 (9... O-O {is interesting.} 10. Nc3 Rb8 11. O-O g6) 10. Ne4 Nd5 {White is slightly better.} 11. Ng3 O-O (11... g6 $11 {keeps the balance.}) 12. Bf5 $16 Ba6 {[#]} 13. a3 ({White should play} 13. d3 $1 $16) 13... Bg5 {[%cal Oe5e4]} 14. Ne4 (14. Nc3 $14) 14... g6 15. Nc5 $1 gxf5 16. Nxa6 {[%cal Ob1c3]} Qf6 17. g3 (17. h4 $14 Bxh4 18. g4) 17... e4 $36 {[%mdl 2048] Black fights for an advantage.} 18. Qe2 Qg7 19. Nc3 Rae8 20. Nxd5 cxd5 21. Qb5 {Inhibits Nc6.} Nc4 22. Qxd5 $2 {[#] Loses the game.} (22. O-O $15) 22... Ne5 $1 $19 23. Qb5 {[#]} Bxd2+ $1 {[%mdl 512]} 24. Bxd2 (24. Kxd2 $2 Nf3+ 25. Ke3 Qg5+ 26. Ke2 Qh5 $19) 24... Nf3+ 25. Kf1 Nxd2+ 26. Kg2 Qg4 27. Rhe1 $2 (27. Rhf1) 27... f4 28. h3 (28. Nb4 $142 e3 29. fxe3 f3+ (29... fxe3 $2 30. Qd3 $17) (29... Rxe3 30. Rxe3 fxe3 31. Qc6 $17) 30. Kg1) 28... Qf3+ 29. Kg1 fxg3 30. Re2 {[#]} Re6 $1 {[%cal Oe6g6] ( -> ...Rg6!)} 31. fxg3 {[#]} Rg6 $1 32. g4 Qg3+ 33. Rg2 Nf3+ 34. Kf1 Qxh3 35. Qh5 Nd2+ (35... Nh4 $142 36. Qxh4 Qxh4 37. Ke2 Qf6 (37... Rxa6 $2 38. Rag1 $19) 38. Rg3 Qxb2 (38... Qxa6+ $2 39. Kf2 $19) 39. Nc5 Qxc2+ (39... Qxa1 $2 40. Nb7 $19) 40. Kf1 Rf6+ (40... Qxc5 $2 41. Kg2 $19) 41. Kg1 Qf2+ (41... Qxc5+ {is a self mate.} 42. Kh2 e3 43. Re1 Rf2+ 44. Kh3 Re8 45. Rh1 e2 46. Rhg1 Re3 47. Rh1 Rxg3+ 48. Kxg3 Qe3+ 49. Kh4 Rf3 50. Kh5 Qg5#) 42. Kh1 Qxg3 43. Nxe4 Qh3+ (43... Qxg4 44. Nxf6+ Kg7 45. Nxg4 $16) 44. Kg1 Rf3 (44... Qxg4+ {leads to mate.} 45. Kh2 Qh4+ 46. Kg2 Qxe4+ 47. Kh2 Rf2+ 48. Kg3 Rg2+ 49. Kh3 Qg4#) 45. Rc1 Qxg4+ 46. Ng3 Qxg3+ (46... Rxg3+ 47. Kf2 Qf3+ 48. Ke1 Re8+ 49. Kd2 Rg2#) 47. Kh1 Rf4 48. Rg1 Rh4#) 36. Kg1 {Black is clearly winning.} Qe3+ 37. Kh1 Rxa6 38. g5 Rg6 {Strongly threatening ...Nf3.} 39. Rag1 Kh7 {White must now prevent ...Rfg8.} 40. Rg3 Nf3 {Weighted Error Value: White=0.85/Black=0.25 (precise) .  Loses game:     	White=1     	---        Mistake:       	White=5     	Black=1      Inaccurate:     	White=1     	Black=2      OK:         	White=5     	Black=8      Best:        	White=4     	Black=3      Strong:       	White=1     	Black=1} 0-1

[Event "45th FIDE Womens Olympiad 2024"]
[Site "Budapest"]
[Date "2024.09.16"]
[Round "6.33"]
[White "Spinola, Divania"]
[Black "Maly, Inthavong"]
[Result "0-1"]
[ECO "C24"]
[WhiteElo "1583"]
[BlackElo "1633"]
[PlyCount "136"]
[EventDate "2024.09.05"]
[EventType "team-tourn"]
[EventCountry "HUN"]
[WhiteTeam "Cape Verde"]
[BlackTeam "Laos"]
[BlackTeamCountry "LAO"]
[TimeControl "40/5400+30:1800+30"]

1. e4 e5 2. Nf3 Nc6 3. Bc4 Nf6 4. d3 d5 5. exd5 Nxd5 6. Bxd5 Qxd5 7. Nc3 Bb4 8. O-O Bxc3 9. bxc3 Bg4 10. Re1 Bxf3 11. Qxf3 Qxf3 12. gxf3 O-O 13. Ba3 Rfe8 14. Rab1 Rab8 15. Kg2 Re6 16. Kf1 b6 17. c4 Nd4 18. Re4 Nxf3 19. Ke2 Nd4+ 20. Kd2 f5 21. Re3 e4 22. Bb2 Nf3+ 23. Ke2 Nxh2 24. dxe4 fxe4 25. Rg3 g6 26. Rd1 Rd6 27. Be5 Rxd1 28. Kxd1 Rd8+ 29. Ke2 Rd7 30. Re3 Ng4 31. Rxe4 Nxe5 32. Rxe5 Kf7 33. Kf3 Rd2 34. Re4 c5 35. Rf4+ Kg7 36. Re4 Rd7 37. Ke3 h5 38. f4 Kf6 39. Kf3 Rd2 40. Re8 Rxc2 41. Rf8+ Kg7 42. Rd8 Rxa2 43. Rd7+ Kh6 44. Rd8 a5 45. Rh8+ Kg7 46. Rb8 Rb2 47. Rb7+ Kh6 48. Ke4 h4 49. Rb8 Kg7 50. Rb7+ Kf6 51. Rc7 Re2+ 52. Kf3 Re6 53. Kg4 a4 54. Rh7 Re4 55. Rxh4 Rxc4 56. Kf3 a3 57. Rh1 a2 58. Ra1 Rc2 59. Ke3 b5 60. Kd3 Rf2 61. Kc3 Kf5 62. Kb3 Kxf4 63. Rxa2 Rxa2 64. Kxa2 g5 65. Kb2 Ke3 66. Kc2 g4 67. Kc1 Ke2 68. Kc2 g3 {0-} 0-1

[Event "45th FIDE Womens Olympiad 2024"]
[Site "Budapest"]
[Date "2024.09.16"]
[Round "6.34"]
[White "Vega Gutierrez, Sabrina"]
[Black "Campos, Maria Jose"]
[Result "1-0"]
[ECO "C48"]
[WhiteElo "2374"]
[BlackElo "2252"]
[Annotator "TA"]
[PlyCount "55"]
[EventDate "2024.09.05"]
[EventType "team-tourn"]
[EventCountry "HUN"]
[SourceTitle "playchess.com"]
[Source "ChessBase"]
[SourceQuality "1"]
[WhiteTeam "Spain"]
[BlackTeam "Argentina"]
[WhiteTeamCountry "ESP"]
[BlackTeamCountry "ARG"]
[TimeControl "40/5400+30:1800+30"]

{[%evp 15,55,19,17,0,0,0,7,0,0,-5,0,-9,0,0,0,0,0,-27,0,0,3,3,3,0,4,-12,79,77,140,116,283,92,349,351,489,499,507,493,468,447,531,569]} 1. e4 e5 2. Nf3 Nc6 3. Nc3 Nf6 4. Bb5 Nd4 5. O-O Nxb5 6. Nxb5 c6 7. Nc3 d6 8. d4 Qc7 9. Bg5 Be7 10. a4 Bg4 11. Bxf6 {The position is equal.} Bxf6 12. d5 O-O 13. h3 Bd7 14. Qd3 Rad8 15. a5 c5 16. Rfd1 g6 17. Qc4 Bg7 18. Ra3 Bh6 19. Ne1 {[%cal Bf3e1,Be1d3,Bd3e5,Be5c6,Bc6a7,Ba7b5][%mdl 32]} f5 20. Nd3 Rc8 (20... Qc8 $11 {remains equal.}) 21. Nxe5 $1 $16 {[%cal Oe5c6] Threatens to win with Nc6!} Bg7 (21... Rce8 $142 22. Nf3 (22. Nxd7 Qxd7 23. b4 cxb4 $14) 22... Bg7) 22. Nc6 $1 $36 {[%mdl 2048] White is in control. White is more active.} (22. Nxd7 Qxd7 23. exf5 Rxf5 $14) 22... Bxc3 {[#]} (22... Rce8 23. Nb5 (23. Nxa7 Bxc3 24. bxc3 Rxe4 $16) 23... Rxe4 24. Qxe4 (24. Ncxa7 Rxc4 25. Nxc7 Rxc2 $17) 24... fxe4 25. Nxc7 $18) (22... Be8 $16) 23. Rxc3 $2 (23. Nxa7 $2 {loses.} Bxb2 24. Nxc8 Bxc8 $19 (24... Bxa3 25. Ne7+ Kf7 26. e5 $19)) (23. Ne7+ $1 $18 {is the precise move to win.} Kf7 24. Nxc8) 23... Rce8 $2 {[%mdl 8192] [#]} (23... Rf7 $16) 24. e5 $1 $18 (24. Nxa7 Rxe4 25. Qb3 Qb8 $17) 24... Bc8 25. exd6 {White is clearly winning.} (25. Nxa7 Rxe5 26. Nxc8 Rxc8 $16) 25... Qxd6 26. Nxa7 ({Not} 26. Qxc5 Qxc5 27. Rxc5 bxc6 $16) 26... Bd7 27. Nb5 Qf6 28. Qxc5 {Weighted Error Value: White=0.19 (very precise) /Black=0.51.  Loses game:     	---       	Black=2      Missed win:     	White=1     	---        Mistake:       	---       	Black=2      Inaccurate:     	White=1     	Black=2      OK:         	White=4     	Black=7      Best:        	White=2     	---        Strong:       	White=3     	---} 1-0

[Event "45th FIDE Womens Olympiad 2024"]
[Site "Budapest"]
[Date "2024.09.16"]
[Round "6.35"]
[White "Borda Rodas, Anapaola S."]
[Black "Matnadze Bujiashvili, Ann"]
[Result "1/2-1/2"]
[ECO "C45"]
[WhiteElo "2216"]
[BlackElo "2338"]
[Annotator "TA"]
[PlyCount "99"]
[EventDate "2024.09.05"]
[EventType "team-tourn"]
[EventCountry "HUN"]
[SourceTitle "playchess.com"]
[Source "ChessBase"]
[SourceQuality "1"]
[WhiteTeam "Argentina"]
[BlackTeam "Spain"]
[WhiteTeamCountry "ARG"]
[BlackTeamCountry "ESP"]
[TimeControl "40/5400+30:1800+30"]

{[%evp 17,99,26,14,24,9,18,11,-15,33,0,37,31,48,52,60,28,31,0,29,14,22,19,39,36,104,92,119,117,106,102,107,99,107,89,107,105,134,87,101,101,131,0,0,0,10,18,12,17,8,4,29,16,11,0,2,0,18,0,0,0,0,0,64,0,0,0,3,0,0,0,0,0,29,27,46,50,61,51,60,8,31,11,27,75]} 1. e4 e5 2. Nf3 d6 3. d4 exd4 4. Nxd4 Be7 5. c4 Nf6 6. Nc3 O-O 7. Bd3 Nc6 8. Nxc6 bxc6 9. O-O Re8 10. h3 Nd7 11. Be3 Bf6 12. Rc1 {The position is equal.} Ne5 (12... c5 $11 {feels stronger.}) 13. Be2 Ng6 14. c5 Rb8 15. b3 a5 16. Bd3 dxc5 17. Bxc5 Be5 18. Be3 Qh4 {[%cal Oc8h3]} 19. Qf3 Re6 {[%cal Be8e6,Be6d6,Bd6d4][%mdl 32] And now ...Rf6 would win.} 20. Qg4 Qf6 {[#]} (20... Qe7 $14) 21. Bg5 $1 $16 Rd6 22. Bxf6 (22. Qh5 {looks sharper.} Qe6 23. Bc4 Qe8 24. f4) 22... Bxg4 23. Bxe5 Nxe5 24. Bb1 Bc8 25. f4 Ng6 26. e5 Rd4 {[#]} 27. Rcd1 (27. Rfd1 $142 $1 {[%cal Rd1d4]} Rbb4 28. Kf2) 27... c5 28. Bxg6 hxg6 29. Ne2 (29. Na4 $16) 29... Rxd1 $11 30. Rxd1 {[%mdl 4096] Endgame. Hoping for Rd8+. KRB-KRN} Ba6 31. Nc3 {Strongly threatening Rd5.} c4 32. bxc4 Bxc4 33. Rd7 Rc8 34. Kf2 Be6 35. Rd2 Kf8 36. Ne4 Ke7 37. Nc5 Rb8 38. Na6 Rc8 {...c5 is the strong threat.} 39. Rc2 {[%cal Oa2a3]} c6 ({Better is} 39... c5 $11 40. Nxc5 Bxa2) 40. Rc5 (40. Nc5 $14) 40... Bxa2 41. Rxa5 Bd5 42. Nc5 Rb8 43. Ra7+ Ke8 44. Nb7 Kf8 45. g4 Re8 46. Nc5 Kg8 47. h4 {White is more active.} Rb8 48. Nb7 (48. Ke3 $14) 48... Re8 49. Kg3 Re7 {White must now prevent ...Kh7.} 50. Ra8+ {Weighted Error Value: White=0.15 (very precise) /Black=0.16 (very precise) .  Mistake:       	White=4     	Black=3      Inaccurate:     	White=4     	Black=3      OK:         	White=12    	Black=13     Best:        	White=2     	Black=3      Strong:       	White=1     	---} 1/2-1/2